bitfinex/quotes_BTCUSD_20240826
["timestamp","ask_amount","ask_price","bid_price","bid_amount"]
[1724673153661,0.142524,64014.0,64013.0,2.63711273]
[1724673154779,0.080424,64014.0,64013.0,2.66045963]
[1724673154956,0.080424,64014.0,64013.0,2.56767496]
[1724673155355,0.001624,64014.0,64013.0,2.68449871]
[1724673155597,0.001624,64014.0,64013.0,3.23773471]
[1724673155728,0.001624,64014.0,64013.0,3.41929324]
[1724673155926,0.001624,64014.0,64013.0,3.32153409]
[1724673156176,0.001624,64014.0,64013.0,3.41929283]
[1724673156510,0.001624,64014.0,64013.0,3.30246908]
[1724673157042,0.001624,64014.0,64013.0,3.19774597]
[1724673157248,0.001624,64014.0,64013.0,3.30244636]
[1724673157772,0.001624,64014.0,64013.0,3.29925807]
[1724673158661,0.001624,64014.0,64013.0,2.87871551]
[1724673158868,0.141724,64014.0,64013.0,2.71486515]
[1724673159074,0.141724,64014.0,64013.0,2.58786333]
[1724673159298,0.141724,64014.0,64013.0,2.97036784]
[1724673159472,0.141724,64014.0,64013.0,2.92954241]
[1724673159692,0.141724,64014.0,64013.0,2.65206429]
[1724673159896,0.141724,64014.0,64013.0,2.87984855]
[1724673160114,0.141724,64014.0,64013.0,2.5119388]
[1724673160288,0.141724,64014.0,64013.0,2.69357343]
[1724673160490,0.141724,64014.0,64013.0,2.56742841]
[1724673160719,0.141724,64014.0,64013.0,2.68424872]
[1724673161106,0.141724,64014.0,64013.0,2.68427391]
[1724673161315,0.141724,64014.0,64013.0,2.66088476]
[1724673161664,0.141724,64014.0,64013.0,2.68427449]
[1724673162585,0.141724,64014.0,64013.0,2.59081551]
[1724673162935,0.141724,64014.0,64013.0,2.70763845]
[1724673163213,0.080624,64014.0,64013.0,2.70763845]
[1724673163378,0.080624,64014.0,64013.0,2.62631456]
[1724673163576,0.080624,64014.0,64013.0,3.00102108]
[1724673164245,0.080624,64014.0,64013.0,2.68858508]
[1724673164438,0.080624,64014.0,64013.0,2.66519001]
[1724673165093,0.001624,64014.0,64013.0,2.97762601]
[1724673165280,0.001624,64014.0,64013.0,3.00102108]
[1724673166343,0.001624,64014.0,64013.0,3.02007932]
[1724673166542,0.001624,64014.0,64013.0,3.11729519]
[1724673166746,0.001624,64014.0,64013.0,2.91481048]
[1724673166962,0.001624,64014.0,64013.0,3.07927009]
[1724673167164,0.001624,64014.0,64013.0,3.01952203]
[1724673167409,0.001624,64014.0,64013.0,2.80484622]
[1724673167623,0.001624,64014.0,64013.0,2.70708603]
[1724673167817,0.082624,64014.0,64013.0,2.59026728]
[1724673168141,0.143824,64014.0,64013.0,2.59026728]
[1724673168361,0.143824,64014.0,64013.0,2.48216072]
[1724673168563,0.143824,64014.0,64013.0,2.31039637]
[1724673168768,0.143824,64014.0,64013.0,2.56758109]
[1724673169402,0.143824,64014.0,64013.0,2.56742679]
[1724673170204,0.143824,64014.0,64013.0,2.61758337]
[1724673170382,0.143824,64014.0,64013.0,2.66089202]
[1724673170531,0.143824,64014.0,64013.0,2.68428478]
[1724673170748,0.143824,64014.0,64013.0,2.59082125]
[1724673170950,0.143824,64014.0,64013.0,2.56742849]
[1724673171575,0.143824,64014.0,64013.0,2.66089552]
[1724673172998,0.143824,64014.0,64013.0,2.66170033]
[1724673173574,0.143824,64014.0,64013.0,2.48691149]
[1724673173728,0.143824,64014.0,64013.0,2.66170199]
[1724673174581,0.143824,64014.0,64013.0,2.66170528]
[1724673174977,0.143824,64014.0,64013.0,2.56823161]
[1724673175176,0.143824,64014.0,64013.0,2.68506639]
[1724673175426,0.143824,64014.0,64013.0,2.56823161]
[1724673175738,0.082624,64014.0,64013.0,2.68506639]
[1724673175862,0.082624,64014.0,64013.0,2.78282801]
[1724673176307,0.082624,64014.0,64013.0,2.68506639]
[1724673176547,0.082624,64014.0,64013.0,2.78282808]
[1724673177022,0.082624,64014.0,64013.0,2.73952077]
[1724673177452,0.082624,64014.0,64013.0,2.62268599]
[1724673178243,0.082624,64014.0,64013.0,2.73955088]
[1724673178447,0.082624,64014.0,64013.0,2.62268599]
[1724673178568,0.082624,64014.0,64013.0,2.95214826]
[1724673178779,0.082624,64014.0,64013.0,2.97842767]
[1724673179215,0.082624,64014.0,64013.0,2.97735819]
[1724673180198,0.082624,64014.0,64013.0,2.95107878]
[1724673180613,0.082624,64014.0,64013.0,3.1116019]
[1724673180936,0.082624,64014.0,64013.0,3.09698159]
[1724673182403,0.082624,64014.0,64013.0,2.48584201]
[1724673182606,0.145424,64014.0,64013.0,2.60272625]
[1724673182778,0.145424,64014.0,64013.0,2.60352478]
[1724673183465,0.145424,64014.0,64013.0,2.48663817]
[1724673183695,0.145424,64014.0,64013.0,2.60352481]
[1724673184055,0.145424,64014.0,64013.0,2.64154028]
[1724673184338,0.145424,64014.0,64013.0,2.68485064]
[1724673185471,0.145424,64014.0,64013.0,2.64683482]
[1724673186428,0.145424,64014.0,64013.0,2.68485221]
[1724673188229,0.145424,64014.0,64013.0,1.75644258]
[1724673188432,0.145424,64014.0,64013.0,1.69029165]
[1724673188880,0.145424,64014.0,64013.0,1.66689633]
[1724673190154,0.144424,64014.0,64013.0,1.65289633]
[1724673191011,0.144424,64014.0,64013.0,1.63427426]
[1724673191251,0.145424,64014.0,64013.0,1.63827426]
[1724673191706,0.145424,64014.0,64013.0,1.63427426]
[1724673191943,0.145424,64014.0,64013.0,1.63829949]
[1724673192182,0.146424,64014.0,64013.0,1.65229949]
[1724673193113,0.146424,64014.0,64013.0,1.64829949]
[1724673193370,0.146424,64014.0,64013.0,1.65229949]
[1724673193846,0.146424,64014.0,64013.0,1.33986349]
[1724673198321,0.146424,64014.0,64013.0,1.3398689]
[1724673199501,0.146424,64014.0,64013.0,1.31356818]
[1724673200380,0.146424,64014.0,64013.0,1.33986761]
[1724673200971,0.146424,64014.0,64013.0,1.33986623]
[1724673203022,0.146424,64014.0,64013.0,1.31356818]
[1724673203223,0.146424,64014.0,64013.0,1.33985613]
[1724673204666,0.146424,64014.0,64013.0,1.33885613]
[1724673204851,0.146424,64014.0,64013.0,1.33985613]
[1724673205009,0.146424,64014.0,64013.0,1.65229213]
[1724673205205,0.146424,64014.0,64013.0,1.64829213]
[1724673205411,0.146424,64014.0,64013.0,1.65229213]
[1724673207223,0.146424,64014.0,64013.0,1.96472813]
[1724673207429,0.146424,64014.0,64013.0,2.12090614]
[1724673207430,0.002624,64014.0,64013.0,2.12090614]
[1724673207641,0.002624,64014.0,64013.0,2.22982128]
[1724673207849,0.002624,64014.0,64013.0,2.23382128]
[1724673209422,0.002624,64014.0,64013.0,2.17122128]
[1724673209828,0.082924,64014.0,64013.0,2.17122128]
[1724673212743,0.082924,64014.0,64013.0,2.27832784]
[1724673213230,0.002422,64014.0,64013.0,2.27832784]
[1724673214403,0.002422,64014.0,64013.0,2.26126886]
[1724673214772,0.002422,64014.0,64013.0,2.27829148]
[1724673215140,0.002422,64014.0,64013.0,2.27429148]
[1724673216294,0.067022,64014.0,64013.0,2.27829148]
[1724673217098,0.002422,64014.0,64013.0,2.27829148]
[1724673217678,0.002422,64014.0,64013.0,2.2782926]
[1724673218650,0.002422,64014.0,64013.0,2.3436926]
[1724673220614,0.002422,64014.0,64013.0,2.2782926]
[1724673221177,0.002422,64014.0,64013.0,2.5877286]
[1724673221503,0.002422,64014.0,64013.0,2.5917286]
[1724673222284,0.002422,64014.0,64013.0,2.2792926]
[1724673224057,0.002422,64014.0,64013.0,2.2242972]
[1724673224306,0.002422,64014.0,64013.0,2.27827073]
[1724673226117,0.002422,64014.0,64013.0,2.27427073]
[1724673226262,0.002422,64014.0,64013.0,2.27827073]
[1724673227321,0.002422,64014.0,64013.0,2.27826736]
[1724673228584,0.002422,64014.0,64013.0,2.27426736]
[1724673229112,0.002422,64014.0,64013.0,2.27826162]
[1724673229542,0.146522,64014.0,64013.0,2.27426162]
[1724673230104,0.146522,64014.0,64013.0,2.27826162]
[1724673231016,0.146522,64014.0,64013.0,2.17015506]
[1724673231301,0.146522,64014.0,64013.0,2.27826162]
[1724673232908,0.146522,64014.0,64013.0,2.27426162]
[1724673233286,0.146522,64014.0,64013.0,2.27826162]
[1724673233490,0.146522,64014.0,64013.0,1.78264761]
[1724673233901,0.146522,64014.0,64013.0,1.72875209]
[1724673234104,0.146522,64014.0,64013.0,1.77492381]
[1724673234321,0.082622,64014.0,64013.0,1.9048527]
[1724673234531,0.002422,64014.0,64013.0,1.96177752]
[1724673234735,0.002422,64014.0,64013.0,1.96577752]
[1724673234971,0.002422,64014.0,64013.0,2.27821352]
[1724673235218,0.002422,64014.0,64013.0,2.27421352]
[1724673235468,0.002422,64014.0,64013.0,2.27821352]
[1724673239828,0.002422,64014.0,64013.0,2.27421352]
[1724673240093,0.002422,64014.0,64013.0,2.27821352]
[1724673240557,0.002422,64014.0,64013.0,2.26361534]
[1724673240756,0.002422,64014.0,64013.0,2.27821633]
[1724673240965,0.002422,64014.0,64013.0,2.33971633]
[1724673242606,0.002422,64014.0,64013.0,2.65215233]
[1724673242780,0.002422,64014.0,64013.0,2.8198413]
[1724673242983,0.002422,64014.0,64013.0,2.81984186]
[1724673243192,0.0012771,64019.0,64018.0,0.001]
[1724673243390,0.0012771,64019.0,64018.0,1.59554426]
[1724673243593,0.0012771,64019.0,64018.0,1.59055267]
[1724673243791,0.0012771,64019.0,64018.0,2.84020067]
[1724673244448,0.0012771,64019.0,64018.0,3.27809195]
[1724673244678,0.0022771,64019.0,64018.0,3.27809195]
[1724673244934,0.0032771,64019.0,64018.0,3.28709195]
[1724673245206,0.0032771,64019.0,64018.0,3.18761149]
[1724673245459,0.0032771,64019.0,64018.0,3.50002349]
[1724673245901,0.0032771,64019.0,64018.0,3.18761149]
[1724673246146,0.0022771,64019.0,64018.0,3.17861149]
[1724673246351,0.0012771,64019.0,64018.0,3.16961149]
[1724673246603,0.0012771,64019.0,64018.0,3.20984841]
[1724673246847,0.0012771,64019.0,64018.0,3.22384841]
[1724673247067,0.0012771,64019.0,64018.0,3.53626041]
[1724673247514,0.0012771,64019.0,64018.0,3.18061267]
[1724673247924,0.0012771,64019.0,64018.0,3.49302467]
[1724673248128,0.0012771,64019.0,64018.0,3.18061267]
[1724673248897,0.0012771,64019.0,64018.0,3.49302467]
[1724673249074,0.0012771,64019.0,64018.0,3.19929936]
[1724673250030,0.0012771,64019.0,64018.0,3.19617626]
[1724673250244,0.0012771,64019.0,64018.0,2.93222651]
[1724673250448,0.0012771,64019.0,64018.0,2.77653007]
[1724673250656,0.0012771,64019.0,64018.0,2.50317057]
[1724673251336,0.0021021,64019.0,64018.0,2.50317057]
[1724673251954,0.0021021,64019.0,64018.0,2.51485791]
[1724673252237,0.1462021,64019.0,64018.0,2.22272072]
[1724673252447,0.1462021,64019.0,64018.0,2.22275857]
[1724673252575,0.1462021,64019.0,64018.0,2.24902111]
[1724673252782,0.1462021,64019.0,64018.0,2.22564594]
[1724673253241,0.0843021,64019.0,64018.0,2.22564594]
[1724673253755,0.0843021,64019.0,64018.0,2.24864594]
[1724673254196,0.0843021,64019.0,64018.0,2.26033323]
[1724673254517,0.0843021,64019.0,64018.0,2.29243729]
[1724673259382,0.0843021,64019.0,64018.0,2.19075857]
[1724673259574,0.0843021,64019.0,64018.0,2.29238752]
[1724673262269,0.0843021,64019.0,64018.0,2.26029795]
[1724673262905,0.0843021,64019.0,64018.0,2.57270995]
[1724673263071,0.0843021,64019.0,64018.0,2.26120545]
[1724673267595,0.0843021,64019.0,64018.0,2.57361745]
[1724673267719,0.0843021,64019.0,64018.0,2.26120545]
[1724673268140,0.0843021,64019.0,64018.0,2.57361745]
[1724673269300,0.0843021,64019.0,64018.0,2.57362464]
[1724673269679,0.0843021,64019.0,64018.0,2.26121264]
[1724673270367,0.0843021,64019.0,64018.0,2.57362464]
[1724673270990,0.0021021,64019.0,64018.0,2.57362464]
[1724673271393,0.0021021,64019.0,64018.0,2.60571334]
[1724673274501,0.0021021,64019.0,64018.0,2.57362464]
[1724673276317,0.0021021,64019.0,64018.0,2.62020723]
[1724673276522,0.0021021,64019.0,64018.0,2.65229815]
[1724673277260,0.0021021,64019.0,64018.0,2.65231439]
[1724673277491,0.0021021,64019.0,64018.0,2.62022347]
[1724673278171,0.0021021,64019.0,64018.0,2.62022837]
[1724673279312,0.0021021,64019.0,64018.0,2.57361545]
[1724673279444,0.0021021,64019.0,64018.0,2.46550889]
[1724673279648,0.0021021,64019.0,64018.0,2.57361545]
[1724673281303,0.0021021,64019.0,64018.0,2.66222411]
[1724673281505,0.0021021,64019.0,64018.0,2.73822411]
[1724673281670,0.0021021,64019.0,64018.0,3.25403395]
[1724673282449,0.0021021,64019.0,64018.0,3.55244595]
[1724673282944,0.0021021,64019.0,64018.0,3.06533395]
[1724673283146,0.0021021,64019.0,64018.0,2.99933395]
[1724673283371,0.0021021,64019.0,64018.0,2.98533395]
[1724673283781,0.0021021,64019.0,64018.0,2.99933395]
[1724673283973,0.0021021,64019.0,64018.0,2.98533395]
[1724673284431,0.0021021,64019.0,64018.0,3.1159178]
[1724673284634,0.0021021,64019.0,64018.0,3.1299178]
[1724673285081,0.0021021,64019.0,64018.0,3.1159178]
[1724673285515,0.0021021,64019.0,64018.0,2.99933395]
[1724673285724,0.0021021,64019.0,64018.0,3.11594309]
[1724673285860,0.0021021,64019.0,64018.0,3.12994309]
[1724673286287,0.0021021,64019.0,64018.0,2.97007581]
[1724673286489,0.0021021,64019.0,64018.0,3.12993289]
[1724673286921,0.0021021,64019.0,64018.0,3.01332151]
[1724673289701,0.0021021,64019.0,64018.0,3.01332435]
[1724673292193,0.0021021,64019.0,64018.0,3.01212584]
[1724673293057,0.0021021,64019.0,64018.0,2.98175815]
[1724673293263,0.0021021,64019.0,64018.0,3.01212702]
[1724673294092,0.0021021,64019.0,64018.0,3.38523902]
[1724673294502,0.0021021,64019.0,64018.0,3.07282702]
[1724673294850,0.0021021,64019.0,64018.0,3.23752702]
[1724673295060,0.0021021,64019.0,64018.0,3.54993902]
[1724673295672,0.0021021,64019.0,64018.0,3.12942046]
[1724673295874,0.0021021,64019.0,64018.0,3.54993902]
[1724673296078,0.0021021,64019.0,64018.0,3.23752702]
[1724673296456,0.0021021,64019.0,64018.0,3.2375286]
[1724673297155,0.0021021,64019.0,64018.0,3.1768286]
[1724673299116,0.0021021,64019.0,64018.0,3.3129286]
[1724673299734,0.0021021,64019.0,64018.0,3.50792889]
[1724673299948,0.0021021,64019.0,64018.0,3.62543907]
[1724673300993,0.0021021,64019.0,64018.0,3.6488175]
[1724673301370,0.0021021,64019.0,64018.0,3.78880433]
[1724673302118,0.0021021,64019.0,64018.0,3.70168617]
[1724673302289,0.0021021,64019.0,64018.0,3.78879911]
[1724673303048,0.0021021,64019.0,64018.0,3.57281228]
[1724673303292,0.0021021,64019.0,64018.0,3.03560028]
[1724673303471,0.1479021,64019.0,64018.0,2.59108172]
[1724673303686,0.1479021,64019.0,64018.0,2.64227826]
[1724673303889,0.1479021,64019.0,64018.0,2.54884215]
[1724673304092,0.1479021,64019.0,64018.0,2.61992278]
[1724673304266,0.1479021,64019.0,64018.0,2.25694928]
[1724673304468,0.1479021,64019.0,64018.0,2.24294928]
[1724673304783,0.1479021,64019.0,64018.0,2.2242465]
[1724673304985,0.1479021,64019.0,64018.0,2.2382465]
[1724673305316,0.1479021,64019.0,64018.0,2.2242465]
[1724673305450,0.1479021,64019.0,64018.0,2.19499953]
[1724673305869,0.1479021,64019.0,64018.0,2.30381231]
[1724673306075,0.1479021,64019.0,64018.0,2.32681294]
[1724673306223,0.1479021,64019.0,64018.0,2.28006109]
[1724673306433,0.1479021,64019.0,64018.0,2.27906109]
[1724673306634,0.1479021,64019.0,64018.0,1.66063856]
[1724673306838,0.1479021,64019.0,64018.0,1.6489348]
[1724673307037,0.1479021,64019.0,64018.0,1.63430447]
[1724673307266,0.1479021,64019.0,64018.0,1.63830447]
[1724673307504,0.1479021,64019.0,64018.0,1.31189247]
[1724673308106,0.1479021,64019.0,64018.0,1.32589247]
[1724673308254,0.1479021,64019.0,64018.0,1.29789247]
[1724673308831,0.1479021,64019.0,64018.0,1.32089247]
[1724673309848,0.1479021,64019.0,64018.0,1.30889247]
[1724673310078,0.1479021,64019.0,64018.0,1.29789247]
[1724673310282,0.1479021,64019.0,64018.0,1.31489247]
[1724673310494,0.1479021,64019.0,64018.0,1.31889247]
[1724673313475,0.1479021,64019.0,64018.0,1.00248047]
[1724673313899,0.1479021,64019.0,64018.0,0.69006847]
[1724673314325,0.1479021,64019.0,64018.0,0.66377127]
[1724673314530,0.1479021,64019.0,64018.0,0.50756527]
[1724673315203,0.25600866,64019.0,64018.0,0.50756527]
[1724673315427,0.2664961,64019.0,64018.0,0.57301808]
[1724673315634,0.15838954,64019.0,64018.0,0.57301808]
[1724673316060,0.15838954,64019.0,64018.0,0.56201808]
[1724673316468,0.15838954,64019.0,64018.0,0.57101808]
[1724673316876,0.1479021,64019.0,64018.0,0.57101808]
[1724673317032,0.1479021,64019.0,64018.0,0.71722408]
[1724673317432,0.1479021,64019.0,64018.0,0.56101808]
[1724673317797,0.1479021,64019.0,64018.0,0.56901808]
[1724673318654,0.1479021,64019.0,64018.0,0.72522408]
[1724673319106,0.1479021,64019.0,64018.0,1.03763608]
[1724673319107,0.15648624,64019.0,64018.0,1.03763608]
[1724673319511,0.15648624,64019.0,64018.0,0.72522408]
[1724673319812,0.1479021,64019.0,64018.0,0.72522408]
[1724673320846,0.1479021,64019.0,64018.0,0.56901808]
[1724673321099,0.1479021,64019.0,64018.0,0.72522408]
[1724673321268,0.1479021,64019.0,64018.0,0.56901808]
[1724673321269,0.1564946,64019.0,64018.0,0.56901808]
[1724673321469,0.1479021,64019.0,64018.0,0.56901808]
[1724673321677,0.15649576,64019.0,64018.0,0.56901808]
[1724673322057,0.1479021,64019.0,64018.0,0.56901808]
[1724673322254,0.15649576,64019.0,64018.0,0.56901808]
[1724673322482,0.25600866,64019.0,64018.0,0.56901808]
[1724673323060,0.26460232,64019.0,64018.0,0.56901808]
[1724673325308,0.36460232,64019.0,64018.0,0.56901808]
[1724673326144,0.52078033,64019.0,64018.0,0.4865275]
[1724673326314,0.52078033,64019.0,64018.0,0.0089075]
[1724673326510,0.52078033,64019.0,64018.0,0.0109075]
[1724673326719,0.52078033,64019.0,64018.0,0.0029075]
[1724673327117,0.52078033,64019.0,64018.0,0.0039075]
[1724673330279,0.54526606,64019.0,64018.0,0.0039075]
[1724673331087,0.4371595,64019.0,64018.0,0.0039075]
[1724673331306,0.28098149,64019.0,64018.0,0.0039075]
[1724673331604,0.28098149,64019.0,64018.0,0.3163195]
[1724673331833,0.28098149,64019.0,64018.0,0.7849375]
[1724673332095,0.27238783,64019.0,64018.0,0.96682062]
[1724673332500,0.28097093,64019.0,64018.0,1.27923262]
[1724673332696,0.28097093,64019.0,64018.0,1.17112606]
[1724673333139,0.28097093,64019.0,64018.0,0.85871406]
[1724673333377,0.28097093,64019.0,64018.0,0.54630206]
[1724673333614,0.27238783,64019.0,64018.0,0.54630206]
[1724673333837,0.28099017,64019.0,64018.0,0.54630206]
[1724673334379,0.25650444,64019.0,64018.0,0.54630206]
[1724673336978,0.25650444,64019.0,64018.0,0.23389006]
[1724673337181,0.41268245,64019.0,64018.0,0.02097922]
[1724673337329,0.41268245,64019.0,64018.0,0.0039075]
[1724673338175,0.40408011,64019.0,64018.0,0.0039075]
[1724673338563,0.41268245,64019.0,64018.0,0.0039075]
[1724673340041,0.25650444,64019.0,64018.0,0.0039075]
[1724673340248,0.25650444,64019.0,64018.0,0.5354926]
[1724673343089,0.25650444,64019.0,64018.0,0.5525661]
[1724673344659,0.25650444,64019.0,64018.0,0.2401541]
[1724673349576,0.41268245,64019.0,64018.0,0.0839481]
[1724673349909,0.56750364,64019.0,64018.0,0.0039075]
[1724673350021,0.59086096,64019.0,64018.0,0.0039075]
[1724673351378,0.52078901,64019.0,64018.0,0.0039075]
[1724673351743,0.61421828,64019.0,64018.0,0.0039075]
[1724673353957,0.52078901,64019.0,64018.0,0.0039075]
[1724673354174,0.61421828,64019.0,64018.0,0.0039075]
[1724673354903,0.54527471,64019.0,64018.0,0.0039075]
[1724673355108,0.56063937,64019.0,64018.0,0.0039075]
[1724673355313,0.65429829,64019.0,64018.0,0.0039075]
[1724673355689,0.67742595,64019.0,64018.0,0.0039075]
[1724673355892,0.65431,64019.0,64018.0,0.0039075]
[1724673356251,0.56063937,64019.0,64018.0,0.0039075]
[1724673356487,0.53615367,64019.0,64018.0,0.0039075]
[1724673357296,0.65294025,64019.0,64018.0,0.0039075]
[1724673357496,0.53615367,64019.0,64018.0,0.0039075]
[1724673357953,0.65327983,64019.0,64018.0,0.0039075]
[1724673358459,0.53615367,64019.0,64018.0,0.0039075]
[1724673359431,0.653322,64019.0,64018.0,0.0039075]
[1724673359636,0.63795734,64019.0,64018.0,0.0039075]
[1724673359839,0.52078901,64019.0,64018.0,0.0039075]
[1724673360068,0.52985233,64019.0,64018.0,0.0039075]
[1724673360320,0.41268245,64019.0,64018.0,0.0039075]
[1724673361312,0.25650444,64019.0,64018.0,0.0039075]
[1724673361533,0.25650444,64019.0,64018.0,0.64024038]
[1724673361534,0.19250444,64019.0,64018.0,0.64024038]
[1724673361742,0.08101332,64019.0,64018.0,0.64024038]
[1724673361935,0.01070444,64019.0,64018.0,0.53213382]
[1724673362135,0.01070444,64019.0,64018.0,0.64024038]
[1724673362451,0.01070444,64019.0,64018.0,0.95265238]
[1724673363027,0.0021021,64019.0,64018.0,0.9790031]
[1724673363594,0.0021021,64019.0,64018.0,1.4316151]
[1724673363740,0.0021021,64019.0,64018.0,0.87089654]
[1724673364173,0.00921882,64019.0,64018.0,0.87089654]
[1724673365910,0.00921882,64019.0,64018.0,0.08986654]
[1724673366110,0.2198277,64019.0,64018.0,0.02098116]
[1724673366399,0.37600571,64019.0,64018.0,0.02098116]
[1724673366627,0.37600571,64019.0,64018.0,0.0039075]
[1724673366628,0.30569683,64019.0,64018.0,0.0039075]
[1724673366841,0.30794594,64019.0,64018.0,0.0039075]
[1724673371583,0.40794594,64019.0,64018.0,0.0039075]
[1724673376664,0.52513115,64019.0,64018.0,0.0039075]
[1724673376990,0.40794594,64019.0,64018.0,0.0039075]
[1724673384239,0.56616883,64019.0,64018.0,0.0039075]
[1724673384933,0.40794594,64019.0,64018.0,0.0029075]
[1724673385103,0.41094594,64019.0,64018.0,0.0019075]
[1724673385537,0.41394594,64019.0,64018.0,0.0019075]
[1724673385915,0.41094594,64019.0,64018.0,0.0019075]
[1724673386282,0.41394594,64019.0,64018.0,0.0029075]
[1724673390013,0.52211234,64019.0,64018.0,0.0029075]
[1724673396290,0.41394594,64019.0,64018.0,0.0029075]
[1724673396491,0.52211234,64019.0,64018.0,0.0029075]
[1724673398976,0.34669683,64019.0,64018.0,0.0029075]
[1724673402160,0.27139683,64019.0,64018.0,0.0029075]
[1724673402369,0.27139683,64019.0,64018.0,0.016969]
[1724673404667,0.37956323,64019.0,64018.0,0.0029075]
[1724673407937,0.45896323,64019.0,64018.0,0.0029075]
[1724673409604,0.27139683,64019.0,64018.0,0.0029075]
[1724673415964,0.11521882,64019.0,64018.0,0.1432075]
[1724673416177,0.20895161,64019.0,64018.0,0.2357256]
[1724673416373,0.11521882,64019.0,64018.0,0.2357256]
[1724673416782,0.20895161,64019.0,64018.0,0.3919316]
[1724673417410,0.20895161,64019.0,64018.0,0.2357256]
[1724673418770,0.20895161,64019.0,64018.0,0.2994135]
[1724673419015,0.11521882,64019.0,64018.0,0.6118255]
[1724673419977,0.11521882,64019.0,64018.0,0.2994135]
[1724673421448,0.11521882,64019.0,64018.0,0.0029075]
[1724673421650,0.20892728,64019.0,64018.0,0.0029075]
[1724673421851,0.20892728,64019.0,64018.0,0.0951954]
[1724673423855,0.6183208,64019.0,64018.0,0.0029075]
[1724673424055,0.52461234,64019.0,64018.0,0.0029075]
[1724673425830,0.53894292,64019.0,64018.0,0.0029075]
[1724673426238,0.69707594,64019.0,64018.0,0.0029075]
[1724673426477,0.69514592,64019.0,64018.0,0.0029075]
[1724673426590,0.71963491,64019.0,64018.0,0.0029075]
[1724673427000,0.71663491,64019.0,64018.0,0.0019075]
[1724673427405,0.71663491,64019.0,64018.0,0.0029075]
[1724673427406,0.72663491,64019.0,64018.0,0.0029075]
[1724673427610,0.72363491,64019.0,64018.0,0.0019075]
[1724673427827,1.65238844,64019.0,64018.0,0.0029075]
[1724673428244,1.4943739,64019.0,64018.0,0.0029075]
[1724673429118,1.35944891,64019.0,64018.0,0.0029075]
[1724673429739,2.07185591,64019.0,64013.0,0.0009075]
[1724673429941,1.19122141,64014.0,64013.0,0.0009075]
[1724673430368,1.61100713,64014.0,64013.0,0.0009075]
[1724673430585,1.29857613,64014.0,64013.0,0.0009075]
[1724673430791,1.29857613,64014.0,64013.0,0.0019075]
[1724673430962,1.29857613,64014.0,64013.0,0.0029075]
[1724673431162,1.29857613,64014.0,64013.0,0.0019075]
[1724673431430,1.3470757,64014.0,64013.0,0.0009075]
[1724673431667,1.3580757,64014.0,64013.0,0.0019075]
[1724673431875,1.3680757,64014.0,64013.0,0.0029075]
[1724673433654,1.6805067,64014.0,64013.0,0.0029075]
[1724673434379,1.0281284,64007.0,63996.0,0.0009086]
[1724673434707,1.29150519,64007.0,63996.0,0.0009086]
[1724673435081,1.31600039,64007.0,63996.0,0.0009086]
[1724673435286,1.62846539,64007.0,63996.0,0.0009086]
[1724673435692,1.64246539,64007.0,63996.0,0.0009086]
[1724673436142,1.80491501,64007.0,63996.0,0.0009086]
[1724673436308,1.78041981,64007.0,63996.0,0.0009086]
[1724673436982,1.50641502,63997.0,63996.0,0.0009086]
[1724673437246,1.97510703,63997.0,63996.0,0.0009086]
[1724673437466,2.07510703,63997.0,63996.0,0.0009086]
[1724673437681,2.26260762,63997.0,63996.0,0.0009086]
[1724673437946,2.4187393,63997.0,63996.0,0.0009086]
[1724673438386,2.4467393,63997.0,63996.0,0.0009086]
[1724673438556,2.28938587,63997.0,63996.0,0.0009086]
[1724673438723,2.27538587,63997.0,63996.0,0.0009086]
[1724673438916,2.30338587,63997.0,63996.0,0.0009086]
[1724673439111,0.1441,63978.0,63973.0,0.009086]
[1724673439402,0.25842712,63977.0,63973.0,0.009086]
[1724673439710,0.26549321,63977.0,63973.0,0.009086]
[1724673441470,0.27449321,63977.0,63973.0,0.009086]
[1724673441672,0.27449321,63977.0,63974.0,0.076]
[1724673441886,0.00224911,63976.0,63974.0,0.0848486]
[1724673442080,0.15617801,63975.0,63974.0,0.076]
[1724673442298,0.2632371,63975.0,63974.0,0.076]
[1724673444421,0.2682371,63975.0,63974.0,0.076]
[1724673444646,0.2752371,63975.0,63974.0,0.076]
[1724673444842,0.2752371,63975.0,63973.0,0.009086]
[1724673445052,0.1,63974.0,63973.0,0.009086]
[1724673445250,0.25617801,63974.0,63973.0,0.009086]
[1724673445685,0.26323581,63974.0,63973.0,0.009086]
[1724673447372,0.26723581,63974.0,63973.0,0.009086]
[1724673447776,0.27323581,63974.0,63973.0,0.009086]
[1724673449200,0.27323581,63974.0,63973.0,0.0332671]
[1724673449692,0.27323581,63974.0,63973.0,0.009086]
[1724673451093,0.26617801,63974.0,63973.0,0.009086]
[1724673451401,0.27345062,63974.0,63973.0,0.009086]
[1724673455802,0.34855062,63974.0,63973.0,0.009086]
[1724673456003,0.45685193,63974.0,63973.0,0.009086]
[1724673463425,0.52235193,63974.0,63973.0,0.009086]
[1724673465575,0.59021114,63974.0,63973.0,0.009086]
[1724673465981,0.59521114,63974.0,63973.0,0.009086]
[1724673466243,0.52335193,63974.0,63973.0,0.009086]
[1724673466444,0.51835193,63974.0,63973.0,0.009086]
[1724673467021,0.52935193,63974.0,63973.0,0.009086]
[1724673467398,0.52335193,63974.0,63973.0,0.009086]
[1724673467821,0.53235193,63974.0,63973.0,0.009086]
[1724673468117,0.52335193,63974.0,63973.0,0.009086]
[1724673468318,0.53535193,63974.0,63973.0,0.009086]
[1724673468520,0.42705062,63974.0,63973.0,0.009086]
[1724673468732,0.53535193,63974.0,63973.0,0.009086]
[1724673469025,0.36155062,63974.0,63973.0,0.009086]
[1724673469590,0.28645062,63974.0,63973.0,0.002786]
[1724673469798,0.28645062,63974.0,63973.0,0.0107046]
[1724673470664,0.28645062,63974.0,63973.0,0.002786]
[1724673470851,0.28869973,63974.0,63973.0,0.002786]
[1724673471053,0.39700104,63974.0,63973.0,0.002786]
[1724673473850,0.28869973,63974.0,63973.0,0.002786]
[1724673475416,0.17918331,63974.0,63973.0,0.143886]
[1724673475617,0.03027261,63974.0,63973.0,0.1583146]
[1724673475847,0.03027261,63974.0,63973.0,0.6272606]
[1724673475848,0.13027261,63974.0,63973.0,0.6272606]
[1724673476023,0.13027261,63974.0,63973.0,0.3146296]
[1724673476463,0.112,63974.0,63973.0,0.3146296]
[1724673476663,0.121,63974.0,63973.0,0.3146296]
[1724673476864,0.021,63974.0,63973.0,0.1583146]
[1724673477070,0.121,63974.0,63973.0,0.1583146]
[1724673477269,0.121,63974.0,63973.0,0.3146296]
[1724673477849,0.109,63974.0,63973.0,0.3146296]
[1724673477976,0.006,63974.0,63973.0,0.3146296]
[1724673478176,0.01,63974.0,63973.0,0.3146296]
[1724673478803,0.01,63974.0,63973.0,0.143886]
[1724673479144,0.0172926,63974.0,63973.0,0.067886]